fUSD/lending_fUSD_20240517
["ID","MTS","AMOUNT","RATE_DAILY","PERIOD"]
[327303342,1715976646409,-225.95350787,0.00015159,2]
[327303344,1715976646417,-155.56019281,0.00015161,2]
[327303346,1715976646427,-153.90576893,0.0001517,2]
[327303348,1715976646436,-154.51679898,0.00015176,2]
[327303350,1715976646445,-225.95350787,0.00015186,2]
[327303352,1715976646454,-320.57333333,0.00015189,2]
[327303354,1715976646463,-166.66666666,0.00015191,2]
[327303357,1715976646473,-157.337419,0.00015191,2]
[327303359,1715976646482,-154.51679898,0.000152,2]
[327303360,1715976646491,-355.2160912,0.00015206,2]
[327303363,1715976646500,-567.388,0.00015215,2]
[327303364,1715976646509,-567.388,0.00015215,2]
[327303367,1715976646519,-567.388,0.00015215,2]
[327303368,1715976646528,-567.388,0.00015215,2]
[327303370,1715976646537,-567.388,0.00015215,2]
[327303373,1715976646546,-567.388,0.00015215,2]
[327303375,1715976646557,-567.388,0.00015215,2]
[327303376,1715976646566,-567.388,0.00015215,2]
[327303379,1715976646575,-567.388,0.00015215,2]
[327303380,1715976646584,-567.388,0.00015215,2]
[327303382,1715976646593,-154.51679898,0.00015226,2]
[327303384,1715976646603,-169.37772415,0.0001523,2]
[327303386,1715976646612,-512.03488098,0.00015233,2]
[327303388,1715976646621,-166.66666666,0.00015237,2]
[327303391,1715976646630,-322.22763985,0.00015238,2]
[327303392,1715976646639,-190.35446174,0.00015242,2]
[327303394,1715976646648,-173.36182286,0.00015255,2]
[327303396,1715976646657,-3257.34540101,0.00015273,2]
[327303398,1715976646666,-320.57333333,0.00015278,2]
[327303400,1715976646676,-320.57333333,0.0001528,2]
[327303402,1715976646685,-157.66903106,0.00015283,2]
[327303404,1715976646693,-169.00998554,0.00015283,2]
[327303406,1715976646702,-157.66903106,0.00015298,2]
[327303408,1715976646711,-1644.78099032,0.00015309,2]
[327303410,1715976646721,-156.32757434,0.00015314,2]
[327303412,1715976646730,-320.57333333,0.00015326,2]
[327303414,1715976646739,-1424.96442242,0.0001533,2]
[327303416,1715976646754,-169.37772415,0.00015338,2]
[327303418,1715976646763,-1424.96442242,0.00015342,2]
[327303420,1715976646772,-2862.990434,0.00015342,2]
[327303422,1715976646781,-157.337419,0.00015373,2]
[327303424,1715976646791,-225.95350787,0.00015375,2]
[327303426,1715976646801,-192.5,0.00015399,2]
[327303429,1715976646810,-500.0,0.00015399,2]
[327303431,1715976646821,-598.29,0.00015399,2]
[327303433,1715976646830,-387.44,0.00015399,2]
[327303435,1715976646838,-500.0,0.00015399,2]
[327303437,1715976646847,-15624.71885792,0.000154,2]
[327303439,1715976646856,-153.2385983,0.00015413,2]
[327303441,1715976646865,-512.03488098,0.00015422,2]
[327303443,1715976646874,-633.79020776,0.0001545,2]
[327303445,1715976646883,-450.0,0.00015455,2]
[327303446,1715976646892,-262.99155473,0.00015472,2]
[327303448,1715976646901,-1012.88,0.0001549,2]
[327303451,1715976646911,-150.0,0.000155,2]
[327303453,1715976646920,-150.0,0.000155,2]
[327303455,1715976646929,-166.66666666,0.00015502,2]
[327303457,1715976646938,-355.2160912,0.00015508,2]
[327303459,1715976646947,-233.7684276,0.00015512,2]
[327303461,1715976646956,-512.03488098,0.00015513,2]
[327303462,1715976646965,-166.66666666,0.00015517,2]
[327303464,1715976646974,-233.7684276,0.00015518,2]
[327303466,1715976646983,-473.3,0.00015546,2]
[327303468,1715976646992,-355.2160912,0.0001557,2]
[327303470,1715976647001,-157.66903106,0.00015574,2]
[327303472,1715976647011,-7109.13182845,0.00015587,2]
[327303474,1715976647020,-167.84518346,0.00015588,2]
[327303477,1715976647029,-512.03488098,0.00015589,2]
[327303479,1715976647039,-415.3,0.00015622,2]
[327303481,1715976647048,-834.12756932,0.00015623,2]
[327303483,1715976647060,-159.96588011,0.00015643,2]
[327303485,1715976647068,-168.02744571,0.00015646,2]
[327303487,1715976647077,-225.95350787,0.0001571,2]
[327303489,1715976647087,-11054.97,0.00015753,2]
[327303491,1715976647096,-1644.78099032,0.00015755,2]
[327303493,1715976647105,-160.45154731,0.00015761,2]
[327303495,1715976647114,-633.79020776,0.00015762,2]
[327303497,1715976647123,-152.0,0.00015773,3]
[327303499,1715976647132,-233.46,0.00015774,2]
[327303501,1715976647141,-550.68,0.00015774,2]
[327303503,1715976647150,-326.65,0.00015774,2]
[327303505,1715976647159,-150.0,0.00015774,2]
[327303507,1715976647167,-174.37,0.00015774,2]
[327303509,1715976647176,-420.16,0.00015774,2]
[327303511,1715976647185,-150.0,0.00015774,2]
[327303513,1715976647194,-351.62,0.00015774,2]
[327303515,1715976647203,-523.76,0.00015774,2]
[327303517,1715976647212,-163.38,0.00015774,2]
[327303519,1715976647221,-150.0,0.00015774,2]
[327303521,1715976647230,-150.0,0.00015774,2]
[327303523,1715976647240,-150.0,0.00015774,2]
[327303525,1715976647248,-163.29,0.00015774,2]
[327303527,1715976647259,-351.44,0.00015774,2]
[327303529,1715976647268,-150.0,0.00015774,2]
[327303531,1715976647277,-150.0,0.00015774,2]
[327303533,1715976647286,-150.0,0.00015774,2]
[327303535,1715976647295,-523.76,0.00015774,2]
[327303537,1715976647303,-523.46,0.00015774,2]
[327303539,1715976647312,-300.0,0.00015774,2]
[327303541,1715976647321,-150.0,0.00015774,2]
[327303543,1715976647331,-160.45154731,0.00015826,2]
[327303545,1715976647340,-167.0,0.00015831,2]
[327303547,1715976647349,-3257.34540101,0.00015844,2]
[327303548,1715976647358,-189.95,0.00015845,2]
[327303551,1715976647368,-233.7684276,0.0001585,2]
[327303552,1715976647377,-313.74,0.0001585,2]
[327303555,1715976647386,-166.66666666,0.00015863,2]
[327303556,1715976647395,-794.0,0.00015864,2]
[327303558,1715976647404,-682.0,0.00015864,2]
[327303561,1715976647413,-3257.34540101,0.00015868,2]
[327303563,1715976647423,-170.46182495,0.00015883,2]
[327303565,1715976647432,-834.12756932,0.00015884,2]
[327303567,1715976647441,-152.99399679,0.00015885,2]
[327303569,1715976647450,-500.0,0.0001589,2]
[327303571,1715976647459,-169.37772415,0.00015894,2]
[327303573,1715976647468,-560.0,0.000159,2]
[327303575,1715976647477,-300.0,0.00015914,2]
[327303577,1715976647486,-300.0,0.00015914,2]
[327303579,1715976647496,-300.0,0.00015914,2]
[327303581,1715976647505,-300.0,0.00015914,2]
[327303583,1715976647514,-300.0,0.00015914,2]
[327303585,1715976647523,-300.0,0.00015914,2]
[327303587,1715976647532,-300.0,0.00015914,2]
[327303589,1715976647540,-300.0,0.00015914,2]
[327303591,1715976647549,-300.0,0.00015914,2]
[327303593,1715976647558,-150.0,0.00015915,2]
[327303595,1715976647567,-212.186,0.00015915,2]
[327303597,1715976647576,-1133.249,0.00015915,2]
[327303599,1715976647584,-213.0,0.00015915,2]
[327303600,1715976647594,-297.637,0.00015915,2]
[327303603,1715976647603,-150.0,0.00015915,2]
[327303605,1715976647612,-1788.0,0.00015915,2]
[327303606,1715976647621,-4481.63895123,0.00015915,2]
[327303609,1715976647634,-6634.45000001,0.00015915,2]
[327303612,1715976647652,-3026.8656998,0.00012998,2]
[327303614,1715976647661,-25971.97104876,0.00015915,2]
[327303616,1715976647671,-5914.0,0.00015915,2]
[327303618,1715976647680,-166.66666666,0.00015921,2]
[327303620,1715976647689,-152.0,0.00015928,4]
[327303621,1715976647698,-834.12756932,0.00015957,2]
[327303624,1715976647707,-2080.45214989,0.00015989,2]
[327303625,1715976647717,-300.0,0.00015999,2]
[327303628,1715976647726,-300.0,0.00015999,2]
[327303629,1715976647737,-300.0,0.00015999,2]
[327303631,1715976647749,-300.0,0.00015999,2]
[327303633,1715976647759,-300.0,0.00015999,2]
[327303635,1715976647768,-300.0,0.00015999,2]
[327303637,1715976647776,-300.0,0.00015999,2]
[327303639,1715976647787,-314.24410803,0.00015999,2]
[327303641,1715976647796,-1000.0,0.00016,2]
[327303643,1715976647805,-600.0,0.00016,2]
[327303645,1715976647813,-1000.0,0.00016,2]
[327303647,1715976647823,-11027.1425036,0.00016,3]
[327303649,1715976647833,-13334.49055925,0.00016,2]
[327303652,1715976647843,-41151.87365337,0.00016,2]
[327303654,1715976647852,-34590.17450209,0.00016,2]
[327303656,1715976647861,-2000.0,0.00016,2]
[327303657,1715976647870,-2000.0,0.00016,2]
[327303660,1715976647880,-1650.0,0.00016,2]
[327303662,1715976647889,-150.0,0.00016,2]
[327303663,1715976647898,-150.0,0.00016,2]
[327303665,1715976647907,-550.0,0.00016003,2]
[327303667,1715976647916,-153.90576893,0.00016004,2]
[327303669,1715976647925,-794.0,0.00016028,2]
[327303671,1715976647934,-682.0,0.00016028,2]
[327303673,1715976647943,-355.2160912,0.00016042,2]
[327303675,1715976647953,-211.72291381,0.00016043,2]
[327303677,1715976647962,-834.12756932,0.0001605,2]
[327303679,1715976647971,-169.00998554,0.00016052,2]
[327303681,1715976647980,-512.03488098,0.00016073,2]
[327303683,1715976647990,-598.29,0.00016073,2]
[327303685,1715976648000,-152.0,0.00016083,5]
[327303687,1715976648010,-512.03488098,0.00016084,2]
[327303690,1715976648019,-153.90576893,0.00016099,2]
[327303692,1715976648028,-52319.7249917,0.00016107,2]
[327303694,1715976648038,-13169.62281833,0.00016107,2]
[327303696,1715976648047,-9999.99,0.00016116,2]
[327303698,1715976648056,-341.31,0.00016117,2]
[327303700,1715976648067,-511.59,0.00016117,2]
[327303702,1715976648076,-1424.96442242,0.00016134,2]
[327303704,1715976648085,-834.12756932,0.00016136,2]
[327303706,1715976648095,-633.79020776,0.00016139,2]
[327303707,1715976648105,-154.51679898,0.0001615,2]
[327303710,1715976648114,-153.2385983,0.00016159,2]
[327303712,1715976648123,-211.72291381,0.00016164,2]
[327303713,1715976648132,-2862.990434,0.00016164,2]
[327303716,1715976648142,-280.44,0.0001618,2]
[327303718,1715976648151,-794.0,0.00016191,2]
[327303720,1715976648160,-682.0,0.00016191,2]
[327303722,1715976648170,-834.12756932,0.00016198,2]
[327303724,1715976648179,-512.03488098,0.0001621,2]
[327303726,1715976648188,-169.18135279,0.00016223,2]
[327303728,1715976648197,-633.79020776,0.00016228,2]
[327303730,1715976648206,-633.79020776,0.00016237,2]
[327303731,1715976648215,-152.0,0.00016238,6]
[327303733,1715976648224,-182.90958685,0.00016256,2]
[327303735,1715976648234,-158.50296534,0.0001626,2]
[327303738,1715976648244,-633.79020776,0.00016261,2]
[327303740,1715976648254,-1424.96442242,0.00016261,2]
[327303741,1715976648263,-834.12756932,0.00016281,2]
[327303744,1715976648272,-233.7684276,0.00016305,2]
[327303746,1715976648282,-513651.07597467,0.00016318,2]
[327303748,1715976648291,-355.2160912,0.00016318,2]
[327303750,1715976648300,-1012.88,0.0001632,2]
[327303751,1715976648309,-155.56019281,0.00016321,2]
[327303753,1715976648318,-300.0,0.00016339,2]
[327303755,1715976648328,-153.90576893,0.00016351,2]
[327303757,1715976648337,-167.0,0.00016354,2]
[327303759,1715976648346,-794.0,0.00016355,2]
[327303760,1715976648354,-714.11407225,0.00016355,2]
[327303761,1715976648363,-1157.04744463,0.00016355,2]
[327303762,1715976648372,-682.0,0.00016355,2]
[327303763,1715976648380,-1479.32666121,0.00016355,2]
[327303764,1715976648389,-1485.14,0.00016359,15]
[327303765,1715976648398,-233.7684276,0.0001636,2]
[327303766,1715976648406,-169.00998554,0.00016368,2]
[327303767,1715976648415,-166.66666666,0.00016382,2]
[327303768,1715976648424,-152.0,0.00016393,7]
[327303769,1715976648433,-154.51679898,0.00016398,2]
[327303770,1715976648442,-157.337419,0.00016419,2]
[327303772,1715976648451,-157.337419,0.0001642,2]
[327303774,1715976648460,-157.74934309,0.00016428,7]
[327303777,1715976648470,-200.0,0.00016428,7]
[327303779,1715976648480,-200.0,0.00016428,7]
[327303781,1715976648491,-200.0,0.00016428,7]
[327303782,1715976648500,-200.0,0.00016428,7]
[327303785,1715976648509,-200.0,0.00016428,7]
[327303787,1715976648518,-200.0,0.0001643,7]
[327303789,1715976648527,-200.0,0.0001643,7]
[327303791,1715976648537,-200.0,0.0001643,7]
[327303793,1715976648546,-200.0,0.0001643,7]
[327303794,1715976648555,-200.0,0.0001643,7]
[327303796,1715976648564,-200.0,0.0001643,7]
[327303798,1715976648573,-200.0,0.0001643,7]
[327303801,1715976648582,-200.0,0.0001643,7]
[327303803,1715976648591,-200.0,0.0001643,7]
[327303804,1715976648600,-200.0,0.0001643,7]
[327303807,1715976648609,-200.0,0.0001643,7]
[327303809,1715976648619,-200.0,0.0001643,7]
[327303811,1715976648628,-200.0,0.0001643,7]
[327303812,1715976648637,-200.0,0.0001643,7]
[327303831,1715976648809,-200.0,0.0001643,7]
[327303833,1715976648821,-327.68682334,0.00016438,2]
[327303835,1715976648830,-500.0,0.00016438,2]
[327303837,1715976648840,-618.83,0.00016438,2]
[327303839,1715976648849,-618.83,0.00016438,2]
[327303841,1715976648858,-618.83,0.00016438,2]
[327303843,1715976648868,-618.83,0.00016438,2]
[327303845,1715976648877,-618.83,0.00016438,2]
[327303848,1715976648887,-618.83,0.00016438,2]
[327303850,1715976648896,-618.83,0.00016438,2]
[327303852,1715976648906,-618.83,0.00016438,2]
[327303854,1715976648915,-618.83,0.00016438,2]
[327303856,1715976648925,-618.83,0.00016438,2]
[327303858,1715976648934,-618.83,0.00016438,2]
[327303860,1715976648944,-151.0,0.00016438,2]
[327303862,1715976648953,-200.0,0.00016438,7]
[327303864,1715976648962,-300.0,0.00016438,2]
[327303866,1715976648971,-700.78,0.00016438,2]
[327303868,1715976648981,-11512.0,0.00016438,2]
[327303870,1715976648993,-300.0,0.00016439,2]
[327303872,1715976649002,-300.0,0.00016439,2]
[327303874,1715976649012,-300.0,0.00016439,2]
[327303876,1715976649021,-300.0,0.00016439,2]
[327303878,1715976649031,-300.0,0.00016439,2]
[327303880,1715976649040,-300.0,0.00016439,2]
[327303882,1715976649049,-300.0,0.00016439,2]
[327303884,1715976649057,-181.2,0.00016442,2]
[327303886,1715976649067,-1644.78099032,0.00016472,2]
[327303888,1715976649076,-1644.78099032,0.00016498,2]
[327303890,1715976649085,-1226.52130354,0.000165,2]
[327303892,1715976649094,-150.0,0.000165,2]
[327303894,1715976649103,-150.0,0.000165,2]
[327303896,1715976649112,-153.90576893,0.00016502,2]
[327303898,1715976649122,-166.66666666,0.00016516,2]
[327303900,1715976649131,-794.0,0.00016518,2]
[327303902,1715976649140,-682.0,0.00016518,2]
[327303904,1715976649149,-211.72291381,0.0001654,2]
[327303906,1715976649158,-355.2160912,0.00016546,2]
[327303908,1715976649167,-152.0,0.00016548,8]
[327303910,1715976649177,-650.0,0.00016551,2]
[327303912,1715976649186,-1644.78099032,0.00016555,2]
[327303914,1715976649195,-162.0,0.00016575,2]
[327303916,1715976649204,-211.72291381,0.00016581,2]
[327303919,1715976649214,-415.3,0.00016581,2]
[327303920,1715976649222,-869.2,0.00016581,2]
[327303922,1715976649231,-415.3,0.00016581,2]
[327303925,1715976649240,-869.2,0.00016581,2]
[327303927,1715976649250,-868.93,0.00016588,2]
[327303929,1715976649259,-829.59,0.00016588,2]
[327303931,1715976649269,-415.26,0.0001659,2]
[327303933,1715976649278,-1611.28,0.0001659,2]
[327303935,1715976649287,-808.42,0.0001659,2]
[327303937,1715976649296,-163.92345761,0.00016644,2]
[327303939,1715976649306,-211.72291381,0.0001666,2]
[327303941,1715976649315,-158.96537893,0.00016676,2]
[327303943,1715976649324,-794.0,0.00016682,2]
[327303945,1715976649333,-682.0,0.00016682,2]
[327303947,1715976649342,-150.03377779,0.00016694,2]
[327303949,1715976649351,-152.0,0.00016703,9]
[327303951,1715976649360,-834.12756932,0.00016705,2]
[327303953,1715976649369,-500.0,0.00016712,2]
[327303955,1715976649378,-197.65,0.00016712,2]
[327303957,1715976649387,-166.66666666,0.0001674,2]
[327303959,1715976649396,-166.66666666,0.00016779,2]
[327303961,1715976649404,-1438.76,0.00016785,2]
[327303963,1715976649414,-1424.96442242,0.00016788,2]
[327303965,1715976649423,-313.74,0.000168,2]
[327303967,1715976649432,-320.57333333,0.00016803,2]
[327303969,1715976649441,-153.90576893,0.00016834,2]
[327303971,1715976649452,-794.0,0.00016845,2]
[327303973,1715976649461,-682.0,0.00016845,2]
[327303975,1715976649471,-1000.0,0.00016848,8]
[327303977,1715976649480,-512.03488098,0.00016857,2]
[327303979,1715976649491,-152.0,0.00016857,10]
[327303981,1715976649500,-211.72291381,0.00016863,2]
[327303983,1715976649509,-167.0,0.00016876,2]
[327303985,1715976649518,-225.95350787,0.00016886,2]
[327303987,1715976649527,-163.92345761,0.00016898,2]
[327303989,1715976649537,-158.96537893,0.00016899,2]
[327303991,1715976649546,-443.71594017,0.000169,2]
[327303993,1715976649556,-633.79020776,0.00016905,2]
[327303995,1715976649565,-598.29,0.00016927,2]
[327303997,1715976649574,-598.29,0.00016927,2]
[327303999,1715976649584,-3257.34540101,0.0001693,2]
[327304001,1715976649595,-7109.13182845,0.0001693,2]
[327304004,1715976649604,-166.83499667,0.00016932,2]
[327304006,1715976649614,-834.12756932,0.0001694,2]
[327304008,1715976649623,-473.3,0.00016959,2]
[327304010,1715976649632,-700.0,0.0001697,2]
[327304012,1715976649641,-320.57333333,0.00016971,2]
[327304014,1715976649651,-2862.990434,0.00016986,2]
[327304016,1715976649660,-618.83,0.00016999,2]
[327304018,1715976649669,-1000.0,0.00017,2]
[327304020,1715976649678,-19033.31097899,0.00017,2]
[327304022,1715976649687,-2000.0,0.00017,2]
[327304023,1715976649696,-2000.0,0.00017,2]
[327304026,1715976649705,-155.0,0.00017,2]
[327304027,1715976649714,-1012.88,0.00017,2]
[327304030,1715976649724,-313.74,0.00017,2]
[327304032,1715976649733,-150.0,0.00017,2]
[327304034,1715976649746,-150.0,0.00017,2]
[327304035,1715976649756,-320.57333333,0.00017009,2]
[327304038,1715976649765,-178.74,0.0001701,2]
[327304039,1715976649775,-152.0,0.00017012,11]
[327304042,1715976649787,-157.66903106,0.0001704,2]
[327304044,1715976649796,-512.03488098,0.00017043,2]
[327304046,1715976649806,-1644.78099032,0.00017048,2]
[327304048,1715976649815,-320.57333333,0.00017077,2]
[327304050,1715976649826,-320.57333333,0.00017091,2]
[327304052,1715976649835,-750.0,0.00017099,2]
[327304054,1715976649844,-355.2160912,0.00017108,2]
[327304056,1715976649854,-211.72291381,0.00017128,2]
[327304058,1715976649863,-152.99399679,0.00017133,2]
[327304060,1715976649872,-3257.34540101,0.00017138,2]
[327304062,1715976649881,-1012.88,0.0001715,2]
[327304064,1715976649891,-155.56019281,0.00017153,2]
[327304066,1715976649900,-598.29,0.00017158,2]
[327304068,1715976649910,-150.03377779,0.00017159,2]
[327304070,1715976649919,-152.0,0.00017167,12]
[327304072,1715976649928,-512.03488098,0.000172,2]
[327304074,1715976649937,-233.7684276,0.00017208,2]
[327304076,1715976649946,-211.72291381,0.00017213,2]
[327304078,1715976649956,-154.51679898,0.00017242,2]
[327304080,1715976649965,-150.0,0.00017243,2]
[327304082,1715976649975,-355.2160912,0.0001728,2]
[327304084,1715976649983,-157.337419,0.00017281,2]
[327304086,1715976649994,-189.95,0.00017286,2]
[327304088,1715976650003,-154.51679898,0.000173,2]
[327304090,1715976650012,-166.66666666,0.00017316,2]
[327304092,1715976650022,-633.79020776,0.00017316,2]
[327304094,1715976650031,-152.0,0.00017322,13]
[327304096,1715976650041,-633.79020776,0.00017329,2]
[327304098,1715976650050,-152.99399679,0.00017333,2]
[327304100,1715976650060,-1424.96442242,0.0001734,2]
[327304102,1715976650070,-560.0,0.00017345,2]
[327304104,1715976650080,-167.84518346,0.00017346,2]
[327304106,1715976650089,-158.50296534,0.00017347,2]
[327304108,1715976650100,-166.66666666,0.00017353,2]
[327304110,1715976650109,-152.99399679,0.00017364,2]
[327304112,1715976650119,-152.99399679,0.00017369,2]
[327304115,1715976650128,-167.0,0.00017399,2]
[327304117,1715976650138,-225.95350787,0.00017405,2]
[327304119,1715976650147,-150.0,0.00017406,2]
[327304121,1715976650158,-633.79020776,0.00017425,2]
[327304123,1715976650167,-163.92345761,0.00017429,2]
[327304125,1715976650176,-233.7684276,0.00017439,2]
[327304127,1715976650186,-170.46182495,0.00017454,2]
[327304129,1715976650195,-152.0,0.00017477,14]
[327304131,1715976650204,-3257.34540101,0.00017492,2]
[327304133,1715976650214,-2500.0,0.000175,2]
[327304135,1715976650224,-150.0,0.000175,2]
[327304137,1715976650233,-150.0,0.000175,2]
[327304139,1715976650244,-1000.0,0.000175,2]
[327304141,1715976650253,-211.72291381,0.00017516,2]
[327304143,1715976650262,-157.337419,0.00017517,2]
[327304145,1715976650271,-300.0,0.0001753,2]
[327304147,1715976650281,-355.2160912,0.00017531,2]
[327304149,1715976650290,-500.0,0.00017534,2]
[327304151,1715976650299,-6134.8489401,0.00017542,2]
[327304153,1715976650308,-166.66666666,0.00017542,2]
[327304155,1715976650318,-211.72291381,0.00017544,2]
[327304157,1715976650327,-834.12756932,0.00017584,2]
[327304159,1715976650337,-153.90576893,0.00017585,2]
[327304161,1715976650347,-170.46182495,0.00017586,2]
[327304163,1715976650357,-152.99399679,0.00017588,2]
[327304166,1715976650366,-150.0,0.0001759,2]
[327304168,1715976650375,-320.57333333,0.00017591,2]
[327304170,1715976650385,-154.51679898,0.00017606,2]
[327304172,1715976650395,-152.0,0.00017632,15]
[327304174,1715976650405,-166.66666666,0.00017644,2]
[327304176,1715976650414,-572.87190366,0.00017647,2]
[327304178,1715976650423,-157.66903106,0.0001765,2]
[327304179,1715976650432,-150.0,0.00017655,2]
[327304181,1715976650442,-154.51679898,0.00017675,2]
[327304183,1715976650451,-633.79020776,0.00017675,2]
[327304185,1715976650460,-153.90576893,0.00017683,2]
[327304187,1715976650469,-153.2385983,0.00017701,2]
[327304189,1715976650478,-211.72291381,0.00017701,2]
[327304190,1715976650487,-153.90576893,0.00017736,2]
[327304191,1715976650497,-3257.34540101,0.00017743,2]
[327304192,1715976650507,-313.74,0.0001775,2]
[327304193,1715976650517,-52319.7249917,0.00017761,2]
[327304194,1715976650526,-13169.62281833,0.00017761,2]
[327304196,1715976650536,-233.7684276,0.00017761,2]
[327304198,1715976650545,-300.0,0.00017778,2]
[327304200,1715976650555,-158.96537893,0.00017782,2]
[327304202,1715976650564,-300.0,0.00017783,2]
[327304204,1715976650573,-152.0,0.00017787,16]
[327304206,1715976650583,-1424.96442242,0.0001779,2]
[327304208,1715976650592,-500.0,0.00017808,2]
[327304210,1715976650601,-2862.990434,0.00017808,2]
[327304212,1715976650611,-169.18135279,0.00017814,2]
[327304214,1715976650620,-355.2160912,0.00017816,2]
[327304216,1715976650630,-1500.0,0.00017818,2]
[327304218,1715976650639,-618.83,0.00017819,2]
[327304220,1715976650648,-618.83,0.00017819,2]
[327304222,1715976650658,-158.96537893,0.00017825,2]
[327304224,1715976650666,-1012.88,0.0001783,2]
[327304226,1715976650675,-1644.78099032,0.00017844,2]
[327304228,1715976650684,-3257.34540101,0.00017846,2]
[327304230,1715976650693,-150.0,0.00017847,2]
[327304232,1715976650702,-1500.0,0.00017851,2]
[327304234,1715976650711,-150.0,0.00017852,2]
[327304235,1715976650720,-320.57333333,0.00017852,2]
[327304236,1715976650729,-1424.96442242,0.00017872,2]
[327304237,1715976650739,-152.99399679,0.00017892,2]
[327304238,1715976650753,-77.63264305,0.00017905,2]
[327304239,1715976650787,-500.0,0.00012418,2]
[327304240,1715976650796,-1213.7455377,0.00012998,2]
[327304241,1715976650806,-72.36735695,0.00017905,2]
[327304243,1715976650815,-166.66666666,0.00017913,2]
[327304245,1715976650827,-167.0,0.00017921,2]
[327304247,1715976650836,-211.72291381,0.00017927,2]
[327304249,1715976650845,-150.0,0.0001794,2]
[327304251,1715976650855,-152.0,0.00017942,17]
[327304253,1715976650864,-313.74,0.0001795,2]
[327304255,1715976650874,-225.95350787,0.00017964,2]
[327304257,1715976650884,-180.98401701,0.0001797,2]
[327304259,1715976650895,-452.80619075,0.0001797,2]
[327304261,1715976650904,-164.97424227,0.00017972,2]
[327304264,1715976650914,-355.2160912,0.00017976,2]
[327304265,1715976650923,-1012.88,0.0001798,2]
[327304267,1715976650932,-295.36699663,0.00017984,2]
[327304342,1715977139687,233.23,9.601e-05,2]
[327304348,1715977210931,784.08465462,9.601e-05,2]
[327304349,1715977210957,575.90455868,9.601e-05,2]
[327304350,1715977211134,441.41009594,9.601e-05,2]
[327304351,1715977211159,1017.31465462,9.601e-05,2]
[327304352,1715977211184,1017.31465462,9.601e-05,2]
[327304353,1715977211209,171.31465462,9.601e-05,2]
[327304354,1715977211234,171.31465462,9.601e-05,2]
[327304355,1715977232510,155.0,9.6e-05,2]
[327304356,1715977244741,217.31465462,9.6e-05,2]
[327304357,1715977246280,326.64067795,9.6e-05,2]
[327304358,1715977250124,234.1769208,9.6e-05,2]
[327304359,1715977250511,199.35754854,9.6e-05,2]
[327304360,1715977262425,207.71593277,9.6e-05,2]
[327304361,1715977262748,217.81443411,9.6e-05,2]
[327304362,1715977263235,150.0,9.6e-05,2]
[327304363,1715977265634,8309.29448583,9.6e-05,2]
[327304364,1715977268348,250.5802228,8.64e-05,2]
[327304365,1715977311934,1359.9892133,8.64e-05,2]
[327304366,1715977312647,560.7283452,8.64e-05,2]
[327304367,1715977317938,346.08357273,8.64e-05,2]
[327304370,1715977319718,150.53,9.043e-05,2]
[327304371,1715977320199,7349.40330059,8.64e-05,2]
[327304372,1715977320221,10017.31465462,8.64e-05,2]
[327304373,1715977320243,2847.21415143,8.64e-05,2]
[327304374,1715977326145,7170.10050319,8.64e-05,2]
[327304375,1715977326170,10017.31465462,8.64e-05,2]
[327304376,1715977326194,10017.31465462,8.64e-05,2]
[327304377,1715977326218,10017.31465462,8.64e-05,2]
[327304378,1715977596830,1971.83382113,6.48e-05,2]
[327304381,1715977618994,155.23469938,7.774e-05,2]
[327304383,1715977635308,376.36,8.219e-05,2]
[327304388,1715977689807,7516.64268761,7.774e-05,2]
[327304389,1715977691305,155.0,7.774e-05,2]
[327304390,1715977695048,176144.92879188,7.774e-05,2]
[327304391,1715977695073,124981.62170616,7.774e-05,2]